{"text_format":"1","workbook":"xlsx","n_sheets":2,"sheets":["法人案内誌の原稿","記入例"],"not_rendered":{"charts":0,"images":1,"macros":1,"external_links":0,"defined_names":11,"comments":0,"pivot_tables":0},"unopened":[],"bounds":{"document_bytes":16777216,"sheet_cells":100000,"rows_first":2000,"rows_last":500,"rows_between":2000,"halvings":0,"cell_chars":16384,"cell_head_chars":4096},"cells_cut":0,"cells_raw":0,"read":"whole","date_system":"1900"}

{"sheet":"法人案内誌の原稿","index":0,"n_rows":53,"n_cols":58,"rows_kept":53,"cut":false,"hidden":false,"merged":[[37,0,39,4],[37,6,39,35],[41,0,42,4],[41,6,42,35],[44,0,48,2],[44,5,44,10],[44,11,44,35],[45,4,45,6],[45,8,45,35],[46,4,46,7],[46,8,46,35],[47,4,47,6],[47,8,47,35],[48,4,48,7],[48,8,48,35],[27,0,28,4],[27,6,28,35],[30,0,31,4],[30,6,31,35],[33,0,35,4],[33,6,35,35],[18,0,19,4],[18,6,19,35],[21,0,22,4],[21,6,22,35],[24,0,25,4],[24,6,25,35],[5,2,6,27],[7,2,7,27],[8,2,9,27],[10,0,12,35],[14,0,16,4],[14,6,16,35],[3,23,4,25],[1,0,2,5],[1,7,2,9],[1,11,2,13],[1,15,2,17],[1,19,2,25],[3,0,4,5],[3,7,4,9],[3,11,4,13],[3,15,4,17],[3,19,4,21]]}
[]
[null,null,null,null,null,null,null,null,null,null,null,null,null,null,null,null,null,null,null,null,null,null,null,null,null,null,null,null,null,null,null,null,null,null,null,null,"←①代表的な事業分野を選択してください"]
[null,null,null,null,null,null,null,null,null,null,null,null,null,null,null,null,null,null,null,null,null,null,null,null,null,null,null,null,null,null,null,null,null,null,null,null,null,"※プルダウンリスト▼から選択してください"]
[null,null,null,null,null,null,null,null,null,null,null,null,null,null,null,null,null,null,null,null,null,null,null,null,null,null,null,null,null,null,null,null,null,null,null,null,"←②新卒、一般等、受入可能の場合選択してください",null,null,null,null,null,null,null,null,null,null,null,null,null,null,null,null,null,null,null,null,"社会福祉法人"]
[null,null,null,null,null,null,null,null,null,null,null,null,null,null,null,null,null,null,null,null,null,null,null,null,null,null,null,null,null,null,null,null,null,null,null,null,null,"※プルダウンリスト▼から選択してください",null,null,null,null,null,null,null,null,null,null,null,null,null,null,null,null,null,null,null,"株式会社"]
[null,null,null,null,null,null,null,null,null,null,null,null,null,null,null,null,null,null,null,null,null,null,null,null,null,null,null,null,null,null,null,null,null,null,null,null,"←③法人区分を選択してください",null,null,null,null,null,null,null,null,null,null,null,null,null,null,null,null,null,null,null,null,"医療法人"]
[null,null,null,null,null,null,null,null,null,null,null,null,null,null,null,null,null,null,null,null,null,null,null,null,null,null,null,null,null,null,null,null,null,null,null,null,null,"※プルダウンリスト▼から選択してください",null,null,null,null,null,null,null,null,null,null,null,null,null,null,null,null,null,null,null,"社会医療法人"]
[null,null,null,null,null,null,null,null,null,null,null,null,null,null,null,null,null,null,null,null,null,null,null,null,null,null,null,null,null,null,null,null,null,null,null,null,"←④フリガナを全角カタカナで入力してください",null,null,null,null,null,null,null,null,null,null,null,null,null,null,null,null,null,null,null,null,"NPO法人"]
[null,null,null,null,null,null,null,null,null,null,null,null,null,null,null,null,null,null,null,null,null,null,null,null,null,null,null,null,null,null,null,null,null,null,null,null,null,null,null,null,null,null,null,null,null,null,null,null,null,null,null,null,null,null,null,null,null,"学校法人"]
[null,null,null,null,null,null,null,null,null,null,null,null,null,null,null,null,null,null,null,null,null,null,null,null,null,null,null,null,null,null,null,null,null,null,null,null,"←⑤法人名のみ入力してください(法人区分不要）",null,null,null,null,null,null,null,null,null,null,null,null,null,null,null,null,null,null,null,null,"有限会社"]
[null,null,null,null,null,null,null,null,null,null,null,null,null,null,null,null,null,null,null,null,null,null,null,null,null,null,null,null,null,null,null,null,null,null,null,null,null,null,null,null,null,null,null,null,null,null,null,null,null,null,null,null,null,null,null,null,null,"特定医療法人"]
[null,null,null,null,null,null,null,null,null,null,null,null,null,null,null,null,null,null,null,null,null,null,null,null,null,null,null,null,null,null,null,null,null,null,null,null,"←⑥法人PRを２０文字以内で入力してください",null,null,null,null,null,null,null,null,null,null,null,null,null,null,null,null,null,null,null,null,"公益社団法人"]
[null,null,null,null,null,null,null,null,null,null,null,null,null,null,null,null,null,null,null,null,null,null,null,null,null,null,null,null,null,null,null,null,null,null,null,null,null,"現在の文字数",null,null,null,null,{"$f":"LEN(A11)","v":0},"文字",null,null,null,null,null,null,null,null,null,null,null,null,null,"医療法人社団"]
[null,null,null,null,null,null,null,null,null,null,null,null,null,null,null,null,null,null,null,null,null,null,null,null,null,null,null,null,null,null,null,null,null,null,null,null,null,null,null,null,null,null,null,null,null,null,null,null,null,null,null,null,null,null,null,null,null,"生活協同組合"]
["事業内容",null,null,null,null,null,null,null,null,null,null,null,null,null,null,null,null,null,null,null,null,null,null,null,null,null,null,null,null,null,null,null,null,null,null,null,"←⑦９０字以内で入力してください"]
[null,null,null,null,null,null,null,null,null,null,null,null,null,null,null,null,null,null,null,null,null,null,null,null,null,null,null,null,null,null,null,null,null,null,null,null,null,"現在の文字数",null,null,null,null,{"$f":"LEN(G15)","v":0},"文字（空白含む）",null,null,null,null,null,"３行まで"]
[]
["種　別"]
["募集職種",null,null,null,null,null,null,null,null,null,null,null,null,null,null,null,null,null,null,null,null,null,null,null,null,null,null,null,null,null,null,null,null,null,null,null,"←⑧６０字以内で入力してください"]
[null,null,null,null,null,null,null,null,null,null,null,null,null,null,null,null,null,null,null,null,null,null,null,null,null,null,null,null,null,null,null,null,null,null,null,null,null,"現在の文字数",null,null,null,null,{"$f":"LEN(G19)","v":0},"文字（空白含む）",null,null,null,null,null,"2行まで"]
[]
["資格等",null,null,null,null,null,null,null,null,null,null,null,null,null,null,null,null,null,null,null,null,null,null,null,null,null,null,null,null,null,null,null,null,null,null,null,"←⑨６０字以内で入力してください"]
[null,null,null,null,null,null,null,null,null,null,null,null,null,null,null,null,null,null,null,null,null,null,null,null,null,null,null,null,null,null,null,null,null,null,null,null,null,"現在の文字数",null,null,null,null,{"$f":"LEN(G22)","v":0},"文字（空白含む）",null,null,null,null,null,"2行まで"]
[]
["給　　与",null,null,null,null,null,null,null,null,null,null,null,null,null,null,null,null,null,null,null,null,null,null,null,null,null,null,null,null,null,null,null,null,null,null,null,"←⑩６０字以内で入力してください"]
[null,null,null,null,null,null,null,null,null,null,null,null,null,null,null,null,null,null,null,null,null,null,null,null,null,null,null,null,null,null,null,null,null,null,null,null,null,"現在の文字数",null,null,null,null,{"$f":"LEN(G25)","v":0},"文字（空白含む）",null,null,null,null,null,"2行まで"]
[]
["諸手当\n・待遇",null,null,null,null,null,null,null,null,null,null,null,null,null,null,null,null,null,null,null,null,null,null,null,null,null,null,null,null,null,null,null,null,null,null,null,"←⑪６０字以内で入力してください"]
[null,null,null,null,null,null,null,null,null,null,null,null,null,null,null,null,null,null,null,null,null,null,null,null,null,null,null,null,null,null,null,null,null,null,null,null,null,"現在の文字数",null,null,null,null,{"$f":"LEN(G28)","v":0},"文字（空白含む）",null,null,null,null,null,"2行まで"]
["人　数"]
["休日休暇",null,null,null,null,null,null,null,null,null,null,null,null,null,null,null,null,null,null,null,null,null,null,null,null,null,null,null,null,null,null,null,null,null,null,null,"←⑫６０字以内で入力してください"]
[null,null,null,null,null,null,null,null,null,null,null,null,null,null,null,null,null,null,null,null,null,null,null,null,null,null,null,null,null,null,null,null,null,null,null,null,null,"現在の文字数",null,null,null,null,{"$f":"LEN(G31)","v":0},"文字（空白含む）",null,null,null,null,null,"2行まで"]
[]
["就業先\n事業所名",null,null,null,null,null,null,null,null,null,null,null,null,null,null,null,null,null,null,null,null,null,null,null,null,null,null,null,null,null,null,null,null,null,null,null,"←⑬９０字以内で入力してください"]
[null,null,null,null,null,null,null,null,null,null,null,null,null,null,null,null,null,null,null,null,null,null,null,null,null,null,null,null,null,null,null,null,null,null,null,null,null,"現在の文字数",null,null,null,null,{"$f":"LEN(G34)","v":0},"文字（空白含む）",null,null,null,null,null,"3行まで"]
[]
[]
["就業先\n所在地・\n最寄駅など",null,null,null,null,null,null,null,null,null,null,null,null,null,null,null,null,null,null,null,null,null,null,null,null,null,null,null,null,null,null,null,null,null,null,null,"←⑭９０字以内で入力してください"]
[null,null,null,null,null,null,null,null,null,null,null,null,null,null,null,null,null,null,null,null,null,null,null,null,null,null,null,null,null,null,null,null,null,null,null,null,null,"現在の文字数",null,null,null,null,{"$f":"LEN(G38)","v":0},"文字（空白含む）",null,null,null,null,null,"3行まで"]
[]
[]
["求める人物像",null,null,null,null,null,null,null,null,null,null,null,null,null,null,null,null,null,null,null,null,null,null,null,null,null,null,null,null,null,null,null,null,null,null,null,"←⑮６０字以内で入力してください"]
[null,null,null,null,null,null,null,null,null,null,null,null,null,null,null,null,null,null,null,null,null,null,null,null,null,null,null,null,null,null,null,null,null,null,null,null,null,"現在の文字数",null,null,null,null,{"$f":"LEN(G42)","v":0},"文字（空白含む）",null,null,null,null,null,"2行まで"]
[]
["問合せ先",null,null,null,"〒",null,null,null,null,null,null,null,null,null,null,null,null,null,null,null,null,null,null,null,null,null,null,null,null,null,null,null,null,null,null,null,"←⑯郵便番号、住所、建物名等　"]
[null,null,null,null,"TEL　",null,null,null,null,null,null,null,null,null,null,null,null,null,null,null,null,null,null,null,null,null,null,null,null,null,null,null,null,null,null,null,"←⑰TEL　"]
[null,null,null,null,"E-mail ",null,null,null,null,null,null,null,null,null,null,null,null,null,null,null,null,null,null,null,null,null,null,null,null,null,null,null,null,null,null,null,"←⑱E-mail　※任意"]
[null,null,null,null,"URL",null,null,null,null,null,null,null,null,null,null,null,null,null,null,null,null,null,null,null,null,null,null,null,null,null,null,null,null,null,null,null,"←⑲URL　※任意　"]
[null,null,null,null,"担当　",null,null,null,null,null,null,null,null,null,null,null,null,null,null,null,null,null,null,null,null,null,null,null,null,null,null,null,null,null,null,null,"←⑳施設名、部署、採用担当者等"]
[]
[]
["【お問合せ先】"]
["大阪福祉人材支援センター　担　当　/丸橋 ・ 澤井 ・小田",null,null,null,null,null,null,null,null,null,null,null,null,null,null,null,null,null,null,null,null,null,null,null,null,null,null,null,null,null,null,null,null,"Tel 06-6762-9006"]

{"sheet":"記入例","index":1,"n_rows":53,"n_cols":50,"rows_kept":53,"cut":false,"hidden":false,"merged":[[3,23,4,25],[1,0,2,5],[1,7,2,9],[1,11,2,13],[1,15,2,17],[1,19,2,25],[3,0,4,5],[3,7,4,9],[3,11,4,13],[3,15,4,17],[3,19,4,21],[5,2,6,27],[7,2,7,27],[8,2,9,27],[10,0,12,35],[14,0,16,4],[14,6,16,35],[18,0,19,4],[18,6,19,35],[21,0,22,4],[21,6,22,35],[24,0,25,4],[24,6,25,35],[27,0,28,4],[27,6,28,35],[30,0,31,4],[30,6,31,35],[33,0,35,4],[33,6,35,35],[37,0,39,4],[37,6,39,35],[41,0,42,4],[41,6,42,35],[44,0,48,2],[44,5,44,10],[44,11,44,35],[45,4,45,6],[45,8,45,35],[46,4,46,7],[46,8,46,35],[47,4,47,6],[47,8,47,35],[48,4,48,7],[48,8,48,35]]}
[]
[null,null,null,null,null,null,null,"高",null,null,null,"障",null,null,null,"児",null,null,null,"医・生保・他",null,null,null,null,null,null,null,null,null,null,null,null,null,null,null,null,"←①代表的な事業分野を選択してください"]
[null,null,null,null,null,null,null,null,null,null,null,null,null,null,null,null,null,null,null,null,null,null,null,null,null,null,null,null,null,null,null,null,null,null,null,null,null,"※プルダウンリスト▼から選択してください"]
[null,null,null,null,null,null,null,"2018採用",null,null,null,"2017採用",null,null,null,"一般",null,null,null,"無資格",null,null,null,"未経験",null,null,null,null,null,null,null,null,null,null,null,null,"←②新卒、一般等、受入可能の場合選択してください"]
[null,null,null,null,null,null,null,null,null,null,null,null,null,null,null,null,null,null,null,null,null,null,null,null,null,null,null,null,null,null,null,null,null,null,null,null,null,"※プルダウンリスト▼から選択してください"]
[null,null,"社会福祉法人",null,null,null,null,null,null,null,null,null,null,null,null,null,null,null,null,null,null,null,null,null,null,null,null,null,null,null,null,null,null,null,null,null,"←③法人区分を選択してください"]
[null,null,null,null,null,null,null,null,null,null,null,null,null,null,null,null,null,null,null,null,null,null,null,null,null,null,null,null,null,null,null,null,null,null,null,null,null,"※プルダウンリスト▼から選択してください"]
[null,null,"オオサカジンザイフクシカイ",null,null,null,null,null,null,null,null,null,null,null,null,null,null,null,null,null,null,null,null,null,null,null,null,null,null,null,null,null,null,null,null,null,"←④フリガナを全角カタカナで入力してください"]
[null,null,"大阪人材福祉会"]
[null,null,null,null,null,null,null,null,null,null,null,null,null,null,null,null,null,null,null,null,null,null,null,null,null,null,null,null,null,null,null,null,null,null,null,null,"←⑤法人名のみ入力してください(法人区分不要）"]
["「第二の我が家」を目指してがモットーです"]
[null,null,null,null,null,null,null,null,null,null,null,null,null,null,null,null,null,null,null,null,null,null,null,null,null,null,null,null,null,null,null,null,null,null,null,null,"←⑥法人PRを２０文字以内で入力してください"]
[null,null,null,null,null,null,null,null,null,null,null,null,null,null,null,null,null,null,null,null,null,null,null,null,null,null,null,null,null,null,null,null,null,null,null,null,null,"現在の文字数",null,null,null,null,{"$f":"LEN(A11)","v":20},"文字"]
[]
["事業内容",null,null,null,null,null,"社会的にニーズの高い介護業界で、在宅介護を主にサービス提供しています。介護ビジネスに関わる様々な事業を展開しております。\nまた、今年度は新しい事業所の立ち上げを予定しております！",null,null,null,null,null,null,null,null,null,null,null,null,null,null,null,null,null,null,null,null,null,null,null,null,null,null,null,null,null,"←⑦９０字以内で入力してください"]
[null,null,null,null,null,null,null,null,null,null,null,null,null,null,null,null,null,null,null,null,null,null,null,null,null,null,null,null,null,null,null,null,null,null,null,null,null,"現在の文字数",null,null,null,null,{"$f":"LEN(G15)","v":89},"文字（空白含む）",null,null,null,null,null,"３行まで"]
[]
["種　別"]
["募集職種",null,null,null,null,null,"総合職（介護職から始まり、企画・事務・営業・スーパーバイザー、ソーシャルワーカーなど様々な職種を経験可能）",null,null,null,null,null,null,null,null,null,null,null,null,null,null,null,null,null,null,null,null,null,null,null,null,null,null,null,null,null,"←⑧６０字以内で入力してください"]
[null,null,null,null,null,null,null,null,null,null,null,null,null,null,null,null,null,null,null,null,null,null,null,null,null,null,null,null,null,null,null,null,null,null,null,null,null,"現在の文字数",null,null,null,null,{"$f":"LEN(G19)","v":53},"文字（空白含む）",null,null,null,null,null,"2行まで"]
[]
["資格等",null,null,null,null,null,"社会福祉士、介護福祉士、ヘルパー２級/初任者研修　等\n※無資格・未経験者もお気軽にお越しください！",null,null,null,null,null,null,null,null,null,null,null,null,null,null,null,null,null,null,null,null,null,null,null,null,null,null,null,null,null,"←⑨６０字以内で入力してください"]
[null,null,null,null,null,null,null,null,null,null,null,null,null,null,null,null,null,null,null,null,null,null,null,null,null,null,null,null,null,null,null,null,null,null,null,null,null,"現在の文字数",null,null,null,null,{"$f":"LEN(G22)","v":49},"文字（空白含む）",null,null,null,null,null,"2行まで"]
[]
["給　　与",null,null,null,null,null,"大卒：￥189,000～　短卒：￥184,000～、専卒：￥181,000～ ※経験者は、経験・能力を考慮し決定します",null,null,null,null,null,null,null,null,null,null,null,null,null,null,null,null,null,null,null,null,null,null,null,null,null,null,null,null,null,"←⑩６０字以内で入力してください"]
[null,null,null,null,null,null,null,null,null,null,null,null,null,null,null,null,null,null,null,null,null,null,null,null,null,null,null,null,null,null,null,null,null,null,null,null,null,"現在の文字数",null,null,null,null,{"$f":"LEN(G25)","v":59},"文字（空白含む）",null,null,null,null,null,"2行まで"]
[]
["諸手当\n・待遇",null,null,null,null,null,"諸手当：資格手当、住宅手当、通勤手当、家族手当\nその他：単身寮完備、住宅補助あり、支度金制度あり",null,null,null,null,null,null,null,null,null,null,null,null,null,null,null,null,null,null,null,null,null,null,null,null,null,null,null,null,null,"←⑪６０字以内で入力してください"]
[null,null,null,null,null,null,null,null,null,null,null,null,null,null,null,null,null,null,null,null,null,null,null,null,null,null,null,null,null,null,null,null,null,null,null,null,null,"現在の文字数",null,null,null,null,{"$f":"LEN(G28)","v":48},"文字（空白含む）",null,null,null,null,null,"2行まで"]
["人　数"]
["休日休暇",null,null,null,null,null,"年間休日約110日　※公休：４週８休、夏季休暇：3日、冬季休暇：3日、誕生日休暇、勤続年数でリフレッシュ休暇制度あり",null,null,null,null,null,null,null,null,null,null,null,null,null,null,null,null,null,null,null,null,null,null,null,null,null,null,null,null,null,"←⑫６０字以内で入力してください"]
[null,null,null,null,null,null,null,null,null,null,null,null,null,null,null,null,null,null,null,null,null,null,null,null,null,null,null,null,null,null,null,null,null,null,null,null,null,"現在の文字数",null,null,null,null,{"$f":"LEN(G31)","v":58},"文字（空白含む）",null,null,null,null,null,"2行まで"]
[]
["就業先\n事業所名",null,null,null,null,null,"①デイサービススマイル　②スマイル総合在宅センター\n③特別養護老人ホーム甲子園の家\n※その他の就業先はＨＰかブースでお問い合わせください！",null,null,null,null,null,null,null,null,null,null,null,null,null,null,null,null,null,null,null,null,null,null,null,null,null,null,null,null,null,"←⑬９０字以内で入力してください"]
[null,null,null,null,null,null,null,null,null,null,null,null,null,null,null,null,null,null,null,null,null,null,null,null,null,null,null,null,null,null,null,null,null,null,null,null,null,"現在の文字数",null,null,null,null,{"$f":"LEN(G34)","v":69},"文字（空白含む）",null,null,null,null,null,"3行まで"]
[]
[]
["就業先\n所在地・\n最寄駅など",null,null,null,null,null,"①大阪市都島区：地下鉄谷町線「都島駅」　②大阪市阿倍野区：地下鉄御堂筋線「長居駅」　③西宮市：阪神「甲子園駅」\n※その他の就業先はＨＰかブースでお問い合わせください！",null,null,null,null,null,null,null,null,null,null,null,null,null,null,null,null,null,null,null,null,null,null,null,null,null,null,null,null,null,"←⑭９０字以内で入力してください"]
[null,null,null,null,null,null,null,null,null,null,null,null,null,null,null,null,null,null,null,null,null,null,null,null,null,null,null,null,null,null,null,null,null,null,null,null,null,"現在の文字数",null,null,null,null,{"$f":"LEN(G38)","v":83},"文字（空白含む）",null,null,null,null,null,"3行まで"]
[]
[]
["求める人物像",null,null,null,null,null,"「私たちが日本の介護を変えていく」という理念に共感してくださる方。資格よりも、人柄とやる気を重視します！",null,null,null,null,null,null,null,null,null,null,null,null,null,null,null,null,null,null,null,null,null,null,null,null,null,null,null,null,null,"←⑮６０字以内で入力してください"]
[null,null,null,null,null,null,null,null,null,null,null,null,null,null,null,null,null,null,null,null,null,null,null,null,null,null,null,null,null,null,null,null,null,null,null,null,null,"現在の文字数",null,null,null,null,{"$f":"LEN(G42)","v":52},"文字（空白含む）",null,null,null,null,null,"2行まで"]
[]
["問合せ先",null,null,null,"〒","542-0025",null,null,null,null,null,"大阪市中央区中寺1-1-54　大阪社会指導センター内",null,null,null,null,null,null,null,null,null,null,null,null,null,null,null,null,null,null,null,null,null,null,null,null,"←⑯便番号、住所、建物名等　"]
[null,null,null,null,"TEL　",null,null,null,"06-6762-9006",null,null,null,null,null,null,null,null,null,null,null,null,null,null,null,null,null,null,null,null,null,null,null,null,null,null,null,"←⑰TEL　"]
[null,null,null,null,"E-mail ",null,null,null,"osk-fair@osakafusyakyo.or.jp",null,null,null,null,null,null,null,null,null,null,null,null,null,null,null,null,null,null,null,null,null,null,null,null,null,null,null,"←⑱E-mail　※任意"]
[null,null,null,null,"URL",null,null,null,"http://www.osakafusyakyo.or.jp/fcenter/",null,null,null,null,null,null,null,null,null,null,null,null,null,null,null,null,null,null,null,null,null,null,null,null,null,null,null,"←⑲URL　※任意"]
[null,null,null,null,"担当　",null,null,null,"人材支援センター　澤井",null,null,null,null,null,null,null,null,null,null,null,null,null,null,null,null,null,null,null,null,null,null,null,null,null,null,null,"←⑳施設名、部署、採用担当者等"]
[]
[]
["【お問合せ先】"]
["大阪福祉人材支援センター　担　当　/　丸橋 ・ 澤井 ・ 小田",null,null,null,null,null,null,null,null,null,null,null,null,null,null,null,null,null,null,null,null,null,null,null,null,null,null,null,null,null,null,null,null,"Tel 06-6762-9006"]